bitfinex/quotes_BTCUSD_20241120
["timestamp","ask_amount","ask_price","bid_price","bid_amount"]
[1732074373268,0.38937757,91979.0,91978.0,0.0017078]
[1732074374603,0.28065757,91979.0,91978.0,0.0017078]
[1732074374842,0.23565757,91979.0,91978.0,0.0343238]
[1732074380011,0.23565757,91979.0,91978.0,0.0017078]
[1732074380526,0.24565757,91979.0,91978.0,0.0017078]
[1732074380749,0.35437757,91979.0,91978.0,0.0017078]
[1732074380962,0.38737757,91979.0,91978.0,0.0017078]
[1732074381409,0.38937757,91979.0,91978.0,0.0017078]
[1732074384636,0.01,91967.0,91952.0,0.1]
[1732074384839,0.1251,91965.0,91953.0,0.01367474]
[1732074385062,0.1251,91965.0,91950.0,0.032626]
[1732074385063,0.11049189,91964.0,91960.0,0.032622]
[1732074385276,0.10906255,91964.0,91963.0,0.032621]
[1732074385954,0.10906255,91964.0,91943.0,0.01741628]
[1732074386155,0.00142934,91963.0,91961.0,0.032622]
[1732074386366,0.10906255,91962.0,91961.0,0.032622]
[1732074386609,0.10906255,91962.0,91961.0,0.04630643]
[1732074391462,0.10906255,91962.0,91961.0,0.08957909]
[1732074391932,0.10906255,91962.0,91961.0,0.08959402]
[1732074392834,0.10906255,91962.0,91961.0,0.01369936]
[1732074393045,0.10906255,91962.0,91892.0,0.360624]
[1732074393046,0.0754,91951.0,91942.0,0.032628]
[1732074393272,0.0754,91951.0,91919.0,0.01]
[1732074393273,0.11049189,91950.0,91944.0,0.0137072]
[1732074393485,0.11049189,91950.0,91945.0,0.0137072]
[1732074393696,0.11049189,91950.0,91944.0,0.0137072]
[1732074393923,0.11049189,91950.0,91947.0,0.032627]
[1732074394168,0.11049189,91950.0,91948.0,0.04633791]
[1732074394371,0.11049189,91950.0,91949.0,0.04633791]
[1732074394585,0.10906255,91950.0,91949.0,0.04633791]
[1732074395475,0.01,91957.0,91949.0,0.04633791]
[1732074395476,0.09720382,91976.0,91974.0,0.032617]
[1732074395685,7e-07,91979.0,91977.0,0.032616]
[1732074395891,7e-07,91979.0,91978.0,0.032616]
[1732074397907,0.10906325,91979.0,91978.0,0.032616]
[1732074399659,0.11262347,91979.0,91978.0,0.032616]
[1732074414023,0.16242347,91979.0,91978.0,0.032616]
[1732074414434,0.16385281,91979.0,91978.0,0.032616]
[1732074418269,0.16385281,91979.0,91949.0,0.0017084]
[1732074418270,0.01,91977.0,91949.0,0.0017084]
[1732074418517,0.0458,91975.0,91962.0,0.04478561]
[1732074418761,0.0458,91973.0,91968.0,0.032619]
[1732074418987,0.0458,91973.0,91949.0,0.0017084]
[1732074418988,0.1218,91970.0,91965.0,0.03262]
[1732074419209,0.11049189,91969.0,91966.0,0.03262]
[1732074419447,0.1133636,91969.0,91959.0,0.032623]
[1732074419681,0.24086255,91966.0,91959.0,0.032622]
[1732074419893,0.24086255,91966.0,91952.0,0.032625]
[1732074419894,0.002,91964.0,91952.0,0.032625]
[1732074420107,0.002,91964.0,91950.0,0.1]
[1732074420108,0.11049189,91963.0,91953.0,0.032625]
[1732074420335,0.0458,91962.0,91957.0,0.032623]
[1732074420538,0.01,91953.0,91949.0,0.0017084]
[1732074420754,0.15629189,91952.0,91949.0,0.0017084]
[1732074421455,0.19506255,91950.0,91949.0,0.0017084]
[1732074421684,0.30524589,91950.0,91949.0,0.0017084]
[1732074421903,0.19506255,91950.0,91949.0,0.0017084]
[1732074422144,0.19506255,91950.0,91911.0,0.09663527]
[1732074422145,0.01,91938.0,91914.0,0.03596179]
[1732074422367,0.19649189,91950.0,91934.0,0.032631]
[1732074422368,0.10906255,91937.0,91934.0,0.032631]
[1732074422616,0.10906255,91937.0,91936.0,0.032631]
[1732074423765,0.10435622,91937.0,91936.0,0.032631]
[1732074425134,0.11435622,91937.0,91936.0,0.032631]
[1732074425391,0.11435622,91937.0,91934.0,0.0609214]
[1732074425392,0.16015622,91937.0,91934.0,0.0174124]
[1732074425626,0.01,91935.0,91934.0,0.0174124]
[1732074425832,0.20506255,91935.0,91934.0,0.0174124]
[1732074426087,0.36306389,91935.0,91934.0,0.0174124]
[1732074426296,0.36163455,91935.0,91934.0,0.0174124]
[1732074426538,0.38463455,91935.0,91934.0,0.0174124]
[1732074426759,0.39463455,91935.0,91934.0,0.0174124]
[1732074427017,0.24086255,91935.0,91934.0,0.0174124]
[1732074427237,0.24086255,91935.0,91934.0,0.0500444]
[1732074427923,0.24086255,91935.0,91934.0,0.0174124]
[1732074428148,0.24086255,91935.0,91934.0,0.0500444]
[1732074428823,0.24086255,91935.0,91934.0,0.0174124]
[1732074429055,0.24086255,91935.0,91934.0,0.0500444]
[1732074429759,0.11906255,91935.0,91934.0,0.0500444]
[1732074437176,0.26096255,91935.0,91934.0,0.0174124]
[1732074437386,0.26096255,91935.0,91934.0,0.0500444]
[1732074437615,0.25896255,91935.0,91934.0,0.0500444]
[1732074438084,0.24896255,91935.0,91934.0,0.0500444]
[1732074438305,0.24896255,91935.0,91934.0,0.0174124]
[1732074438306,0.25896255,91935.0,91934.0,0.0174124]
[1732074438518,0.26096255,91935.0,91934.0,0.0174124]
[1732074440913,0.25896255,91935.0,91934.0,0.0500444]
[1732074441157,0.25896255,91935.0,91934.0,0.0174124]
[1732074441415,0.26096255,91935.0,91934.0,0.0174124]
[1732074442992,0.28396255,91935.0,91934.0,0.0174124]
[1732074444740,0.28396255,91935.0,91912.0,0.043519]
[1732074444741,0.1365,91919.0,91918.0,0.045225]
[1732074444973,0.24556255,91919.0,91918.0,0.045225]
[1732074445203,0.24556255,91919.0,91918.0,0.034346]
[1732074445462,0.24756255,91919.0,91918.0,0.034346]
[1732074446381,0.38935355,91919.0,91918.0,0.001709]
[1732074446820,0.39935355,91919.0,91918.0,0.001709]
[1732074447528,0.012,91901.0,91900.0,0.034349]
[1732074447789,0.36780389,91901.0,91900.0,0.001705]
[1732074447995,0.36637455,91901.0,91900.0,0.001705]
[1732074448219,0.36637455,91901.0,91900.0,0.034349]
[1732074448220,0.24556255,91901.0,91900.0,0.034349]
[1732074448458,0.16686255,91901.0,91900.0,0.034349]
[1732074449618,0.11906255,91901.0,91900.0,0.034349]
[1732074452605,0.10906255,91901.0,91900.0,0.034349]
[1732074453074,0.01,91911.0,91910.0,0.03264]
[1732074453302,0.11906255,91911.0,91910.0,0.03264]
[1732074458444,0.11906255,91911.0,91902.0,0.032643]
[1732074458445,0.01,91903.0,91902.0,0.032643]
[1732074458651,0.11906255,91903.0,91902.0,0.032643]
[1732074459088,0.10906255,91903.0,91902.0,0.032643]
[1732074465502,0.089,91924.0,91916.0,0.032638]
[1732074465772,0.00142934,91923.0,91917.0,0.032638]
[1732074465975,0.01,91920.0,91917.0,0.032638]
[1732074466643,0.01,91922.0,91917.0,0.032638]
[1732074466888,0.10991705,91918.0,91917.0,0.032638]
[1732074469218,0.10991705,91918.0,91917.0,0.04631137]
[1732074470794,0.0008545,91918.0,91917.0,0.22441137]
[1732074471261,0.0008545,91918.0,91917.0,0.22612037]
[1732074474204,0.0008545,91918.0,91917.0,0.26943928]
[1732074476874,0.0008545,91918.0,91917.0,0.19133928]
[1732074476875,0.10991705,91918.0,91917.0,0.19133928]
[1732074477573,0.10991705,91918.0,91917.0,0.1912712]
[1732074478477,0.11991705,91918.0,91917.0,0.04795229]
[1732074479792,0.10991705,91918.0,91917.0,0.04795229]
[1732074480044,0.11991705,91918.0,91917.0,0.04795229]
[1732074480497,0.19921705,91918.0,91917.0,0.034347]
[1732074482343,0.18921705,91918.0,91917.0,0.034347]
[1732074482557,0.19921705,91918.0,91917.0,0.04795743]
[1732074483209,0.19921705,91918.0,91917.0,0.04795781]
[1732074485026,0.24721705,91918.0,91917.0,0.001709]
[1732074485664,0.24721705,91918.0,91917.0,0.034347]
[1732074485886,0.24721705,91918.0,91917.0,0.001709]
[1732074486111,0.24521705,91918.0,91917.0,0.001709]
[1732074486321,0.24521705,91918.0,91917.0,0.034347]
[1732074487504,0.23521705,91918.0,91917.0,0.04796381]
[1732074489214,0.23521705,91918.0,91917.0,0.09107178]
[1732074489626,0.23521705,91918.0,91917.0,0.07745497]
[1732074489827,0.23521705,91918.0,91917.0,0.09107774]
[1732074490251,0.23521705,91918.0,91917.0,0.04796977]
[1732074490482,0.23521705,91918.0,91917.0,0.034347]
[1732074490736,0.24521705,91918.0,91917.0,0.034347]
[1732074492046,0.23521705,91918.0,91917.0,0.034347]
[1732074492280,0.10991705,91918.0,91917.0,0.034347]
[1732074493125,0.0008545,91918.0,91917.0,0.034347]
[1732074493330,0.0008545,91918.0,91917.0,0.05014999]
[1732074496082,0.0008545,91918.0,91917.0,0.05014931]
[1732074498093,0.0008545,91918.0,91917.0,0.06014931]
[1732074498094,5e-07,91918.0,91917.0,0.06014931]
[1732074499391,5e-07,91918.0,91917.0,0.06014934]
[1732074500221,5e-07,91918.0,91917.0,0.05797382]
[1732074502460,5e-07,91918.0,91917.0,0.044347]
[1732074502923,5e-07,91918.0,91917.0,0.034347]
[1732074503410,5e-07,91918.0,91917.0,0.0365226]
[1732074504236,5e-07,91918.0,91917.0,0.034347]
[1732074504681,5e-07,91918.0,91917.0,0.134347]
[1732074504882,5e-07,91918.0,91917.0,0.13652225]
[1732074505739,5e-07,91918.0,91917.0,0.04652225]
[1732074505939,5e-07,91918.0,91917.0,0.044347]
[1732074506569,5e-07,91918.0,91917.0,0.05797556]
[1732074508533,5e-07,91918.0,91917.0,0.044347]
[1732074508781,0.0008543,91937.0,91936.0,0.032631]
[1732074509453,0.0008543,91937.0,91936.0,0.04480622]
[1732074509454,3e-07,91937.0,91936.0,0.04480622]
[1732074510143,3e-07,91937.0,91936.0,0.08938483]
[1732074510598,3e-07,91937.0,91936.0,0.20300275]
[1732074511462,3e-07,91937.0,91936.0,0.18938483]
[1732074511660,3e-07,91937.0,91936.0,0.08938483]
[1732074515271,3e-07,91937.0,91936.0,0.07720961]
[1732074515515,3e-07,91937.0,91936.0,0.08720961]
[1732074520181,3e-07,91937.0,91936.0,0.0893846]
[1732074522835,3e-07,91937.0,91936.0,0.08720961]
[1732074523053,3e-07,91937.0,91936.0,0.07720961]
[1732074527355,3e-07,91937.0,91936.0,0.07938465]
[1732074527567,3e-07,91937.0,91936.0,0.08938465]
[1732074528395,0.0456,91951.0,91950.0,0.032626]
[1732074530406,0.077,91956.0,91955.0,0.032624]
[1732074530624,0.077,91956.0,91949.0,0.01]
[1732074530625,0.0491,91960.0,91959.0,0.032623]
[1732074537857,0.15816255,91960.0,91959.0,0.032623]
[1732074540239,0.0491,91960.0,91959.0,0.032623]
[1732074541439,0.0499536,91960.0,91959.0,0.032623]
[1732074547816,0.0008536,91960.0,91959.0,0.042623]
[1732074548037,0.0008536,91960.0,91959.0,0.032623]
[1732074551740,0.077,91970.0,91965.0,0.01]
[1732074551976,0.0491,91971.0,91970.0,0.032619]
[1732074552212,0.0788,91976.0,91975.0,0.032617]
[1732074552450,0.0486007,91979.0,91975.0,0.032617]
[1732074552451,0.0486007,91979.0,91978.0,0.032616]
[1732074559695,0.0486007,91979.0,91975.0,0.04473991]
[1732074559911,0.0486007,91979.0,91978.0,0.032616]
[1732074560165,0.23646325,91979.0,91978.0,0.032616]
[1732074562390,0.01,91973.0,91972.0,0.032618]
[1732074562648,0.01,91972.0,91971.0,0.032618]
[1732074563065,0.12178096,91972.0,91971.0,0.032618]
[1732074563293,0.24918096,91972.0,91971.0,0.032618]
[1732074563580,0.23646255,91972.0,91971.0,0.032618]
[1732074564665,0.23936279,91972.0,91971.0,0.032618]
[1732074566466,0.00290024,91972.0,91971.0,0.032618]
[1732074567105,7e-07,91979.0,91978.0,0.032616]
[1732074567526,0.00287303,91979.0,91978.0,0.032616]
[1732074568600,7e-07,91979.0,91978.0,0.032616]
[1732074568810,7e-07,91979.0,91978.0,0.03479016]
[1732074569946,7e-07,91979.0,91978.0,0.223716]
[1732074570148,7e-07,91979.0,91978.0,0.142616]
[1732074570609,7e-07,91979.0,91978.0,0.14478991]
[1732074571038,7e-07,91979.0,91978.0,0.04478991]
[1732074571688,0.1271007,91979.0,91978.0,0.03478991]
[1732074571909,0.1271007,91979.0,91978.0,0.032616]
[1732074572139,0.12952199,91979.0,91978.0,0.032616]
[1732074573115,0.04972199,91979.0,91978.0,0.032616]
[1732074573982,0.00242199,91979.0,91978.0,0.032616]
[1732074574184,0.00242199,91979.0,91978.0,0.03479019]
[1732074574386,7e-07,91979.0,91978.0,0.03479019]
[1732074577594,7e-07,91979.0,91978.0,0.04479019]
[1732074577788,4.495e-05,92000.0,91986.0,0.032613]
[1732074577789,0.01,91991.0,91986.0,0.032613]
[1732074578015,0.01,91991.0,91990.0,0.032612]
[1732074578223,0.0898,91994.0,91993.0,0.032611]
[1732074579347,0.0573,91996.0,91995.0,0.03261]
[1732074579552,0.0473,91996.0,91995.0,0.03261]
[1732074579758,0.059758,91996.0,91995.0,0.03261]
[1732074582535,0.049758,91996.0,91995.0,0.03261]
[1732074582736,0.059758,91996.0,91995.0,0.03261]
[1732074584266,0.049758,91996.0,91995.0,0.03261]
[1732074584854,0.059758,91996.0,91995.0,0.03261]
[1732074585265,0.049758,91996.0,91995.0,0.03261]
[1732074585470,0.059758,91996.0,91995.0,0.03261]
[1732074589459,0.0606113,91996.0,91995.0,0.03261]
[1732074590862,0.0506113,91996.0,91995.0,0.03261]
[1732074593291,0.0033113,91996.0,91995.0,0.03261]
[1732074593666,0.0033113,91996.0,91995.0,0.04478376]
[1732074594289,0.0008533,91996.0,91995.0,0.04478376]
[1732074596676,0.0008533,91996.0,91995.0,0.04261]
[1732074597103,0.0008533,91996.0,91995.0,0.04478367]
[1732074602568,0.0008533,91996.0,91995.0,0.04261]
[1732074606512,0.0008533,91996.0,91992.0,0.032611]
[1732074606941,0.0008533,91996.0,91995.0,0.03261]
[1732074607620,0.0770533,91996.0,91995.0,0.03261]
[1732074609214,0.24481585,91996.0,91995.0,0.03261]
[1732074612449,0.1421,91991.0,91990.0,0.032612]
[1732074612672,0.25116255,91991.0,91990.0,0.032612]
[1732074613106,0.1321,91989.0,91988.0,0.032612]
[1732074613329,0.25388039,91989.0,91988.0,0.032612]
[1732074613533,0.25116255,91989.0,91988.0,0.032612]
[1732074613739,0.25116255,91989.0,91986.0,0.05002037]
[1732074613740,0.01,91987.0,91986.0,0.05002037]
[1732074613982,0.25588048,91987.0,91986.0,0.01740737]
[1732074614227,0.25588048,91987.0,91979.0,0.0017066]
[1732074614228,0.1421,91980.0,91979.0,0.0017066]
[1732074614459,0.1421,91980.0,91979.0,0.0343226]
[1732074614460,0.25116255,91980.0,91979.0,0.0343226]
[1732074614667,0.25116255,91980.0,91979.0,0.0017066]
[1732074614879,0.36988155,91980.0,91979.0,0.0017066]
[1732074615350,0.1421,91961.0,91939.0,0.032629]
[1732074615560,0.3726226,91961.0,91950.0,0.032626]
[1732074615811,0.39490355,91961.0,91939.0,0.01741467]
[1732074616034,0.39490355,91961.0,91941.0,0.04302396]
[1732074616254,0.39490355,91961.0,91941.0,0.032629]
[1732074616489,0.1421,91942.0,91939.0,0.01741467]
[1732074616700,0.23782855,91940.0,91939.0,0.01741467]
[1732074616939,0.12906255,91940.0,91939.0,0.01741467]
[1732074617168,0.12178209,91940.0,91939.0,0.05004467]
[1732074617384,0.12906255,91940.0,91939.0,0.05004467]
[1732074623629,0.13106255,91940.0,91939.0,0.01741467]
[1732074624044,0.12906255,91940.0,91939.0,0.05004467]
[1732074625310,0.12906255,91940.0,91939.0,0.05175147]
[1732074627408,0.11906255,91940.0,91939.0,0.05175147]
[1732074627897,0.01,91946.0,91945.0,0.032628]
[1732074628143,0.099,91954.0,91953.0,0.032625]
[1732074629076,0.02,91960.0,91953.0,0.032625]
[1732074629298,0.02,91960.0,91959.0,0.032623]
[1732074630711,0.12906255,91960.0,91959.0,0.032623]
[1732074631815,0.13212599,91960.0,91959.0,0.032623]
[1732074632472,0.13212599,91960.0,91948.0,0.032627]
[1732074632473,0.0475,91952.0,91948.0,0.032627]
[1732074632711,0.0475,91952.0,91947.0,0.032627]
[1732074632712,0.01,91948.0,91947.0,0.032627]
[1732074632916,0.19806255,91948.0,91947.0,0.032627]
[1732074633149,0.20107994,91948.0,91947.0,0.032627]
[1732074634047,0.21107994,91948.0,91947.0,0.032627]
[1732074636381,0.21379906,91948.0,91947.0,0.032627]
[1732074637437,0.20107994,91948.0,91947.0,0.0343338]
[1732074637654,0.12207994,91948.0,91947.0,0.0343338]
[1732074638079,0.13207994,91948.0,91947.0,0.0343338]
[1732074638715,0.13207994,91948.0,91947.0,0.0017068]
[1732074638940,0.13407994,91948.0,91947.0,0.0017068]
[1732074639170,0.35755609,91948.0,91947.0,0.0017068]
[1732074639375,0.35483694,91948.0,91947.0,0.0017068]
[1732074640733,0.35283694,91948.0,91947.0,0.0017068]
[1732074640943,0.33183694,91948.0,91947.0,0.0017068]
[1732074641816,0.37743694,91948.0,91947.0,0.0017068]
[1732074642454,0.40043694,91948.0,91947.0,0.0017068]
[1732074642683,0.25667994,91948.0,91947.0,0.0343338]
[1732074642885,0.25667994,91948.0,91947.0,0.0017068]
[1732074643097,0.26867994,91948.0,91947.0,0.0017068]
[1732074643333,0.37743694,91948.0,91947.0,0.0017068]
[1732074643542,0.24667994,91948.0,91947.0,0.0343338]
[1732074643966,0.25667994,91948.0,91947.0,0.0343338]
[1732074646638,0.13207994,91948.0,91947.0,0.0343338]
[1732074648266,0.13207994,91948.0,91947.0,0.0017068]
[1732074648514,0.13207994,91948.0,91947.0,0.0343338]
[1732074648774,0.13207994,91948.0,91947.0,0.0017068]
[1732074648775,0.14479918,91948.0,91947.0,0.0017068]
[1732074648996,0.3027354,91948.0,91947.0,0.0017068]
[1732074649207,0.30001616,91948.0,91947.0,0.0343338]
[1732074649424,0.29001616,91948.0,91947.0,0.0343338]
[1732074655377,0.29001616,91948.0,91947.0,0.0017068]
[1732074655602,0.29001616,91948.0,91947.0,0.0343338]
[1732074655827,0.29201616,91948.0,91947.0,0.0017068]
[1732074656810,0.30201616,91948.0,91947.0,0.0017068]
[1732074657022,0.30001616,91948.0,91947.0,0.0017068]
[1732074657757,0.30201616,91948.0,91947.0,0.0017068]
[1732074659533,0.49550951,91948.0,91947.0,0.0017068]
[1732074659773,0.85531468,91948.0,91947.0,0.0017068]
[1732074660234,0.85677296,91948.0,91947.0,0.0017068]
[1732074660453,0.90550932,91948.0,91947.0,0.0017068]
[1732074660689,0.66182754,91948.0,91947.0,0.0017068]
[1732074660940,0.77058454,91948.0,91947.0,0.0017068]
[1732074661164,0.66182754,91948.0,91947.0,0.0017068]
[1732074661680,0.79358454,91948.0,91947.0,0.0017068]
[1732074661921,0.64982754,91948.0,91947.0,0.0017068]
[1732074662153,0.77058454,91948.0,91947.0,0.0017068]
[1732074662866,0.65182754,91948.0,91947.0,0.0017068]
[1732074663349,0.8936599,91948.0,91947.0,0.0343338]
[1732074663566,0.81305484,91948.0,91947.0,0.0343338]
[1732074664036,0.81105484,91948.0,91947.0,0.0343338]
[1732074664455,0.61599132,91948.0,91947.0,0.0343338]
[1732074665554,0.25617994,91948.0,91947.0,0.0343338]
[1732074666218,0.40247154,91948.0,91947.0,0.0343338]
[1732074666440,0.25617994,91948.0,91947.0,0.0343338]
[1732074667539,0.35370687,91948.0,91947.0,0.0343338]
[1732074668232,0.25617994,91948.0,91947.0,0.0343338]
[1732074668672,0.13207994,91948.0,91947.0,0.0343338]
[1732074669604,0.13207994,91948.0,91947.0,0.04797132]
[1732074670716,0.13207994,91948.0,91947.0,0.0343338]
[1732074671999,0.12207994,91948.0,91947.0,0.0343338]
[1732074673569,0.11207994,91948.0,91947.0,0.0343338]
[1732074676566,0.12207994,91948.0,91947.0,0.0343338]
[1732074680339,0.12479903,91948.0,91947.0,0.0343338]
[1732074680776,0.09479903,91948.0,91947.0,0.0343338]
[1732074684481,0.10479903,91948.0,91947.0,0.0017068]
[1732074684918,0.21355603,91948.0,91947.0,0.0017068]
[1732074685143,0.10479903,91948.0,91947.0,0.0343338]
[1732074685596,0.10679903,91948.0,91947.0,0.0343338]
[1732074685838,0.10479903,91948.0,91947.0,0.0343338]
[1732074686292,0.10679903,91948.0,91947.0,0.0343338]
[1732074687985,0.11679919,91948.0,91947.0,0.0017068]
[1732074688214,0.38105619,91948.0,91947.0,0.0017068]
[1732074688461,0.73829247,91948.0,91947.0,0.0017068]
[1732074688692,0.86517335,91948.0,91947.0,0.0017068]
[1732074690071,0.73829247,91948.0,91947.0,0.0017068]
[1732074690987,0.7721301,91948.0,91947.0,0.0017068]
[1732074692222,0.7721301,91948.0,91947.0,0.0343338]
[1732074692223,0.58453547,91948.0,91947.0,0.0343338]
[1732074692484,0.22457994,91948.0,91947.0,0.0343338]
[1732074693651,0.21457994,91948.0,91947.0,0.0343338]
[1732074694103,0.22457994,91948.0,91947.0,0.0343338]
[1732074699165,0.08207994,91948.0,91947.0,0.0343338]
[1732074699378,0.10207994,91948.0,91947.0,0.0343338]
[1732074699613,0.09207994,91948.0,91947.0,0.0343338]
[1732074700239,0.10207994,91948.0,91947.0,0.0343338]
[1732074700884,0.22147994,91948.0,91947.0,0.07886367]
[1732074701126,0.22147994,91948.0,91947.0,0.0343338]
[1732074701127,0.23147994,91948.0,91947.0,0.0343338]
[1732074701807,0.10207994,91948.0,91947.0,0.0343338]
[1732074703844,0.08207994,91948.0,91947.0,0.0343338]
[1732074704113,0.09207994,91948.0,91947.0,0.0343338]
[1732074704325,0.10207994,91948.0,91947.0,0.0234578]
[1732074706099,0.09991645,91948.0,91947.0,0.0234578]
[1732074706625,0.10310103,91948.0,91947.0,0.0234578]
[1732074707523,0.09310103,91948.0,91947.0,0.0234578]
[1732074707748,0.08310103,91948.0,91947.0,0.0234578]
[1732074707969,0.00403848,91948.0,91947.0,0.0234578]
[1732074708184,0.0008534,91960.0,91948.0,0.1]
[1732074708417,0.0008534,91960.0,91959.0,0.021748]
[1732074708871,4e-07,91960.0,91959.0,0.021748]
[1732074709103,0.08571862,91982.0,91959.0,0.00217481]
[1732074709104,0.01,91973.0,91959.0,0.00217481]
[1732074709343,0.01,91973.0,91972.0,0.021745]
[1732074709584,0.12906255,91973.0,91972.0,0.021745]
[1732074710015,0.11906255,91973.0,91972.0,0.021745]
[1732074710286,0.10906255,91973.0,91972.0,0.021745]
[1732074710742,0.11906255,91973.0,91972.0,0.021745]
[1732074711413,0.10906255,91973.0,91972.0,0.021745]
[1732074711636,4e-07,91980.0,91979.0,0.021744]
[1732074711866,4e-07,91980.0,91979.0,0.03391808]
[1732074712094,4.495e-05,92000.0,91984.0,0.00921058]
[1732074712308,4.495e-05,92000.0,91995.0,0.02174]
[1732074716215,4.495e-05,92000.0,91995.0,0.06687799]
[1732074725481,0.10991585,91996.0,91995.0,0.06687799]
[1732074725940,0.11305843,91996.0,91995.0,0.06687799]
[1732074727534,0.11384785,91996.0,91995.0,0.06687799]
[1732074729040,0.11384785,91996.0,91995.0,0.02174]
[1732074729255,0.16024785,91996.0,91995.0,0.02174]
[1732074729477,0.16296544,91996.0,91995.0,0.02174]
[1732074730223,0.16496544,91996.0,91995.0,0.02174]
[1732074731090,0.16496544,91996.0,91966.0,0.01]
[1732074731091,0.00078942,91987.0,91986.0,0.021742]
[1732074731301,0.23426993,91987.0,91986.0,0.021742]
[1732074731521,0.23450482,91987.0,91986.0,0.021742]
[1732074731951,0.23450482,91987.0,91972.0,0.021745]
[1732074731952,0.01,91973.0,91972.0,0.021745]
[1732074732166,0.11906255,91973.0,91972.0,0.021745]
[1732074732581,0.1220093,91973.0,91972.0,0.021745]
[1732074734334,0.1984093,91973.0,91972.0,0.021745]
[1732074734588,0.2537093,91973.0,91972.0,0.021745]
[1732074734785,0.2557093,91973.0,91972.0,0.021745]
[1732074736104,0.2537093,91973.0,91972.0,0.021745]
[1732074736735,0.2537093,91973.0,91948.0,0.01160194]
[1732074736945,0.10906255,91971.0,91970.0,0.021746]
[1732074737153,0.11906255,91971.0,91970.0,0.021746]
[1732074737611,0.12199094,91971.0,91970.0,0.021746]
[1732074738267,0.12199094,91971.0,91970.0,0.02094329]
[1732074739185,0.12199094,91971.0,91970.0,0.03455577]
[1732074739392,0.12199094,91971.0,91970.0,0.02094329]
[1732074739614,0.12199094,91971.0,91970.0,0.03455344]
[1732074740082,0.11199094,91971.0,91970.0,0.03455344]
[1732074740499,0.00292839,91971.0,91970.0,0.03455344]
[1732074740708,0.0764,91989.0,91978.0,0.021744]
[1732074740938,0.0764,91989.0,91988.0,0.021741]
[1732074741163,0.01,91990.0,91989.0,0.021741]
[1732074741384,0.01,91990.0,91989.0,0.03535115]
[1732074741632,0.0772533,91996.0,91990.0,0.021741]
[1732074741633,0.01,91991.0,91990.0,0.021741]
[1732074741874,0.02,91991.0,91990.0,0.03535115]
[1732074744810,0.02,91991.0,91990.0,0.021741]
[1732074745028,0.02,91991.0,91990.0,0.03534377]
[1732074747493,0.02,91991.0,91990.0,0.021741]
[1732074747494,0.26036255,91991.0,91990.0,0.021741]
[1732074748436,0.26328912,91991.0,91990.0,0.021741]
[1732074748757,0.26328912,91991.0,91969.0,0.021746]
[1732074748758,0.02,91980.0,91979.0,0.021744]
[1732074748868,0.0686,91980.0,91979.0,0.021744]
[1732074749086,0.26036255,91980.0,91979.0,0.021744]
[1732074749319,0.26328498,91980.0,91979.0,0.021744]
[1732074749757,0.26328498,91980.0,91979.0,0.03536631]
[1732074749995,0.26328498,91980.0,91979.0,0.021744]
[1732074750242,0.26328498,91980.0,91979.0,0.03536599]
[1732074750465,0.12198498,91980.0,91979.0,0.03536599]
[1732074750677,0.11198498,91980.0,91979.0,0.03536599]
[1732074750889,0.00292243,91980.0,91979.0,0.03536599]
[1732074751378,0.01,91987.0,91984.0,0.021742]
[1732074751585,0.01,91987.0,91986.0,0.021742]
[1732074751816,0.01,91987.0,91986.0,0.03536399]
[1732074752240,0.01,91987.0,91986.0,0.021742]
[1732074752961,0.11906255,91987.0,91986.0,0.021742]
[1732074753863,0.11991645,91987.0,91986.0,0.021742]
[1732074756056,0.26393423,91987.0,91986.0,0.021742]
[1732074756265,0.26121645,91987.0,91986.0,0.021742]
[1732074759673,0.2641606,91987.0,91986.0,0.021742]
[1732074763648,0.2155606,91987.0,91986.0,0.021742]
[1732074764109,0.1228606,91987.0,91986.0,0.021742]
[1732074764300,0.1328606,91987.0,91986.0,0.03538578]
[1732074765556,0.1228606,91987.0,91986.0,0.03538578]
[1732074766404,0.01,91983.0,91981.0,0.021743]
[1732074766682,0.01,91971.0,91970.0,0.023453]
[1732074766918,0.01,91971.0,91970.0,0.03710973]
[1732074766919,0.11906255,91971.0,91970.0,0.03710973]
[1732074767149,0.12199318,91971.0,91970.0,0.03710973]
[1732074767370,0.12199318,91971.0,91970.0,0.03711275]
[1732074768514,0.00293063,91971.0,91970.0,0.03711275]
[1732074768742,0.01,91974.0,91970.0,0.03711275]
[1732074768980,0.10906255,91973.0,91971.0,0.01365975]
[1732074769212,0.11165247,91973.0,91972.0,0.03540475]
[1732074770759,0.11165247,91973.0,91972.0,0.021745]
[1732074771005,0.11165247,91973.0,91972.0,0.0354099]
[1732074772342,0.12165247,91973.0,91972.0,0.0354099]
[1732074773897,0.12165247,91973.0,91972.0,0.03541004]
[1732074777166,0.12165247,91973.0,91972.0,0.03541334]
[1732074777409,0.00271812,91981.0,91959.0,0.01]
[1732074777656,0.0008533,91996.0,91993.0,0.02174]
[1732074777907,0.0008533,91996.0,91995.0,0.02174]
[1732074777908,0.0108533,91996.0,91995.0,0.02174]
[1732074780533,0.0108533,91996.0,91989.0,0.021741]
[1732074780534,0.11991585,91996.0,91989.0,0.021741]
[1732074780766,0.11991585,91996.0,91983.0,0.021742]
[1732074780767,0.01,91993.0,91992.0,0.021741]
[1732074780987,0.01,91987.0,91983.0,0.021742]
[1732074781228,0.15586255,91993.0,91980.0,0.021743]
[1732074781229,0.0881,91981.0,91980.0,0.021743]
[1732074781439,0.19716255,91981.0,91980.0,0.021743]
[1732074784053,0.19716255,91981.0,91970.0,0.1]
[1732074784274,0.10906255,91980.0,91979.0,0.010872]
[1732074784482,0.11141901,91980.0,91979.0,0.010872]
[1732074785123,0.01,91975.0,91974.0,0.010872]
[1732074785335,0.12141621,91975.0,91974.0,0.010872]
[1732074785530,0.01,91973.0,91972.0,0.012579]
[1732074785787,0.11994803,91973.0,91972.0,0.012579]
[1732074785960,0.12230057,91973.0,91972.0,0.012579]
[1732074787676,0.16910057,91973.0,91972.0,0.001707]
[1732074787949,0.01,91983.0,91972.0,0.001707]
[1732074787950,0.09732776,91988.0,91979.0,0.010871]
[1732074788163,0.09732776,91988.0,91973.0,0.010872]
[1732074788164,0.01,91992.0,91991.0,0.01087]
[1732074788375,0.11906255,91992.0,91991.0,0.01087]
[1732074789518,0.12263222,91992.0,91991.0,0.01087]
[1732074789999,0.00356967,91992.0,91991.0,0.01087]
[1732074790870,0.10906255,91992.0,91991.0,0.01087]
[1732074791096,0.11196864,91992.0,91991.0,0.01087]